fUST/lending_fUST_20250325
["ID","MTS","AMOUNT","RATE_DAILY","PERIOD"]
[356636149,1742869841722,-582.57,0.00013972,2]
[356636150,1742869841731,-1637.61781254,0.00013972,2]
[356636151,1742869841753,-166.45218746,0.00013972,2]
[356636152,1742869841763,-500.0,0.00013972,2]
[356636153,1742869841772,-2046.5,0.00013972,2]
[356636154,1742869841783,-500.0,0.00013972,2]
[356636155,1742869841793,-620.556362,0.00013972,2]
[356636156,1742869841803,-620.556362,0.00013972,2]
[356636157,1742869841812,-620.556362,0.00013972,2]
[356636158,1742869841823,-620.556362,0.00013972,2]
[356636159,1742869841832,-620.556362,0.00013972,2]
[356636160,1742869841842,-620.556362,0.00013972,2]
[356636161,1742869841851,-1312.45,0.00013972,2]
[356636162,1742869841860,-620.556362,0.00013972,2]
[356636163,1742869841869,-620.556362,0.00013972,2]
[356636164,1742869841879,-500.0,0.00013972,2]
[356636165,1742869841888,-500.0,0.00013972,2]
[356636166,1742869841897,-1202.27,0.00013972,2]
[356636167,1742869841908,-2014.69,0.00013972,2]
[356636168,1742869841919,-500.0,0.00013972,2]
[356636169,1742869841928,-769.86,0.00013972,2]
[356636170,1742869841937,-500.0,0.00013972,2]
[356636171,1742869841947,-500.0,0.00013972,2]
[356636172,1742869841956,-542.43,0.00013972,2]
[356636173,1742869841965,-500.0,0.00013972,2]
[356636174,1742869841975,-3619.69,0.00013972,2]
[356636175,1742869841984,-500.0,0.00013972,2]
[356636176,1742869841994,-500.0,0.00013972,2]
[356636177,1742869842003,-1535.15,0.00013972,2]
[356636178,1742869842012,-2874.98,0.00013972,2]
[356636179,1742869842022,-500.0,0.00013972,2]
[356636180,1742869842031,-500.0,0.00013972,2]
[356636181,1742869842041,-824.91,0.00013972,2]
[356636182,1742869842050,-1631.87,0.00013972,2]
[356636183,1742869842060,-514.9,0.00013972,2]
[356636184,1742869842069,-500.0,0.00013972,2]
[356636185,1742869842078,-505.57218923,0.00013972,2]
[356636186,1742869842088,-467.07487687,0.00013972,2]
[356636187,1742869842097,-500.0,0.00013972,2]
[356636188,1742869842107,-678.92,0.00013972,2]
[356636189,1742869842116,-500.0,0.00013972,2]
[356636190,1742869842126,-500.0,0.00013972,2]
[356636191,1742869842135,-615.59,0.00013972,2]
[356636192,1742869842145,-544.31,0.00013972,2]
[356636193,1742869842154,-500.0,0.00013972,2]
[356636194,1742869842164,-937.57,0.00013972,2]
[356636195,1742869842174,-500.0,0.00013972,2]
[356636196,1742869842184,-7334.69,0.00013972,2]
[356636197,1742869842193,-500.0,0.00013972,2]
[356636198,1742869842203,-500.0,0.00013972,2]
[356636199,1742869842212,-526.65512136,0.00013972,2]
[356636200,1742869842222,-11213.91,0.00013972,2]
[356636201,1742869842231,-1177.01,0.00013972,2]
[356636202,1742869842240,-500.0,0.00013972,2]
[356636204,1742869842250,-500.0,0.00013972,2]
[356636205,1742869842259,-49201.80609337,0.00013972,2]
[356636229,1742869929021,168.510265,0.00010959,2]
[356636231,1742870318032,987.0,0.00015238,120]
[356636232,1742870689651,-229.55763535,0.00012111,2]
[356636233,1742870702670,241.6472368,0.0001202,2]
[356636234,1742870705238,-188.5442356,0.0001211,2]
[356636235,1742870710902,188.5442356,0.0001202,2]
[356636236,1742870766452,-175.04844833,0.0001211,2]
[356636237,1742870771089,175.04844833,0.0001202,2]
[356636238,1742870792547,-158.25871196,0.0001211,2]
[356636239,1742870826369,-66.00985194,0.0001211,2]
[356636240,1742870826397,-140.96138599,0.0001211,2]
[356636241,1742870827528,175.52098547,0.0001201,2]
[356636242,1742870833225,-150.0,0.0001211,2]
[356636243,1742870889264,-196.80604956,0.0001211,2]
[356636244,1742870889287,-36.97371557,0.0001211,2]
[356636245,1742870946413,-120.01427916,0.0001211,2]
[356636246,1742870946436,-55.51339439,0.0001211,2]
[356636247,1742871006030,3852.1707034,0.00011993,2]
[356636248,1742871009723,-291.426376,0.0001211,2]
[356636270,1742871032384,-186.4358129,0.00012046,2]
[356636271,1742871032394,-8.573624,0.0001211,2]
[356636272,1742871032404,-522.73591694,0.00012111,2]
[356636273,1742871032415,-65722.12630471,0.00012111,2]
[356636274,1742871032425,-175.52098546,0.00012146,2]
[356636275,1742871032435,-201.1489117,0.00012246,2]
[356636276,1742871032444,-22027.40586811,0.00012614,2]
[356636280,1742871038001,-2872.59413189,0.00012614,2]
[356636281,1742871038011,-228.0266312,0.00012639,2]
[356636282,1742871038021,-1336.7030013,0.00012639,2]
[356636283,1742871038031,-745.2395752,0.000128,2]
[356636284,1742871038040,-186.43581289,0.00012822,2]
[356636285,1742871038049,-1974.1849841,0.000129,2]
[356636286,1742871038058,-310.85493479,0.000129,2]
[356636287,1742871038068,-420.0,0.00013292,2]
[356636288,1742871038077,-1151.0083601,0.000133,2]
[356636289,1742871038086,-1974.18498406,0.00013442,2]
[356636290,1742871038095,-152.0,0.00013537,2]
[356636291,1742871038105,-899.1469304,0.00013552,2]
[356636292,1742871038114,-186.43581289,0.00013598,2]
[356636293,1742871038124,-418.3522718,0.00013616,2]
[356636294,1742871038133,-500.0,0.00013673,2]
[356636295,1742871038142,-500.32506724,0.00013673,2]
[356636296,1742871038152,-151.0,0.0001369,2]
[356636297,1742871038163,-151.0,0.0001369,2]
[356636298,1742871038172,-151.0,0.0001369,2]
[356636299,1742871038182,-151.0,0.0001369,2]
[356636300,1742871038195,-151.0,0.0001369,2]
[356636301,1742871038204,-151.0,0.0001369,2]
[356636302,1742871038214,-151.0,0.0001369,2]
[356636303,1742871038223,-151.0,0.0001369,2]
[356636304,1742871038234,-151.0,0.0001369,2]
[356636305,1742871038243,-151.0,0.0001369,2]
[356636306,1742871038252,-151.0,0.0001369,2]
[356636307,1742871038262,-151.0,0.0001369,2]
[356636308,1742871038274,-151.0,0.0001369,2]
[356636309,1742871038284,-151.0,0.0001369,2]
[356636310,1742871038294,-151.0,0.0001369,2]
[356636311,1742871038303,-151.0,0.0001369,2]
[356636312,1742871038313,-151.0,0.0001369,2]
[356636313,1742871038323,-151.0,0.0001369,2]
[356636314,1742871038333,-282.34136067,0.0001369,2]
[356636315,1742871038342,-160.0,0.00013696,2]
[356636316,1742871038352,-12458.93820146,0.00013696,2]
[356636317,1742871038361,-510.80949268,0.00013698,2]
[356636318,1742871038371,-531.4995684,0.00013698,2]
[356636319,1742871038380,-514.95386524,0.00013698,2]
[356636320,1742871038389,-503.74810994,0.00013698,2]
[356636321,1742871038399,-504.88413465,0.00013698,2]
[356636322,1742871038408,-510.44618479,0.00013698,2]
[356636323,1742871038418,-500.0,0.00013698,2]
[356636324,1742871038427,-507.09763122,0.00013698,2]
[356636325,1742871038436,-511.4349501,0.00013698,2]
[356636326,1742871038446,-504.51208424,0.00013698,2]
[356636327,1742871038456,-504.08850167,0.00013698,2]
[356636328,1742871038465,-500.0,0.00013698,2]
[356636329,1742871038475,-505.53681668,0.00013698,2]
[356636330,1742871038485,-503.65925516,0.00013698,2]
[356636331,1742871038494,-508.15869025,0.00013698,2]
[356636332,1742871038504,-509.10981279,0.00013698,2]
[356636333,1742871038514,-409.86174825,0.00013698,2]
[356636334,1742871038523,-500.0,0.00013698,2]
[356636335,1742871038532,-376.37555471,0.00013698,2]
[356636336,1742871038542,-504.9485058,0.00013698,2]
[356636337,1742871038551,-500.0,0.00013698,2]
[356636338,1742871038560,-500.0,0.00013698,2]
[356636339,1742871038569,-500.0,0.00013698,2]
[356636340,1742871038579,-500.0,0.00013698,2]
[356636341,1742871038589,-500.0,0.00013698,2]
[356636342,1742871038598,-500.0,0.00013698,2]
[356636343,1742871038759,-500.0,0.00013698,2]
[356636344,1742871038769,-500.0,0.00013698,2]
[356636345,1742871038779,-500.0,0.00013698,2]
[356636346,1742871038789,-500.0,0.00013698,2]
[356636347,1742871038799,-500.0,0.00013698,2]
[356636348,1742871038809,-500.0,0.00013698,2]
[356636349,1742871038818,-500.0,0.00013698,2]
[356636350,1742871038828,-500.0,0.00013698,2]
[356636351,1742871038838,-500.0,0.00013698,2]
[356636352,1742871038847,-500.0,0.00013698,2]
[356636353,1742871038857,-500.0,0.00013698,2]
[356636354,1742871038867,-500.0,0.00013698,2]
[356636355,1742871038876,-500.0,0.00013698,2]
[356636356,1742871038886,-500.0,0.00013698,2]
[356636357,1742871038895,-500.0,0.00013698,2]
[356636358,1742871038905,-500.0,0.00013698,2]
[356636359,1742871038915,-189.17830229,0.00013698,2]
[356636360,1742871038924,-500.0,0.00013698,2]
[356636361,1742871038933,-500.0,0.00013698,2]
[356636362,1742871038942,-500.0,0.00013698,2]
[356636363,1742871038952,-500.0,0.00013698,2]
[356636364,1742871038963,-500.0,0.00013698,2]
[356636365,1742871038972,-500.0,0.00013698,2]
[356636366,1742871038982,-500.0,0.00013698,2]
[356636367,1742871038991,-500.0,0.00013698,2]
[356636368,1742871039001,-500.0,0.00013698,2]
[356636369,1742871039010,-500.0,0.00013698,2]
[356636370,1742871039020,-500.0,0.00013698,2]
[356636371,1742871039030,-500.0,0.00013698,2]
[356636372,1742871039040,-500.0,0.00013698,2]
[356636373,1742871039050,-500.0,0.00013698,2]
[356636374,1742871039061,-525.97453139,0.00013698,2]
[356636375,1742871039070,-500.41376672,0.00013698,2]
[356636376,1742871039079,-500.0,0.00013698,2]
[356636377,1742871039089,-520.88996485,0.00013698,2]
[356636378,1742871039099,-500.0,0.00013698,2]
[356636379,1742871039108,-500.0,0.00013698,2]
[356636380,1742871039118,-501.29340417,0.00013698,2]
[356636381,1742871039127,-512.62341394,0.00013698,2]
[356636382,1742871039136,-504.94649569,0.00013698,2]
[356636383,1742871039146,-500.0,0.00013698,2]
[356636384,1742871039155,-501.28823737,0.00013698,2]
[356636385,1742871039165,-521.55482996,0.00013698,2]
[356636386,1742871039174,-511.99423857,0.00013698,2]
[356636387,1742871039185,-507.59910646,0.00013698,2]
[356636388,1742871039198,-500.0,0.00013698,2]
[356636389,1742871039208,-528.62807745,0.00013698,2]
[356636390,1742871039218,-504.52986799,0.00013698,2]
[356636391,1742871039228,-528.34654502,0.00013698,2]
[356636392,1742871039239,-500.0,0.00013698,2]
[356636393,1742871039248,-608.22,0.00013698,2]
[356636394,1742871039257,-550.66,0.00013698,2]
[356636395,1742871039267,-508.37845631,0.00013698,2]
[356636396,1742871039276,-329.88204227,0.00013698,2]
[356636397,1742871039287,-503.21516315,0.00013698,2]
[356636398,1742871039296,-500.0,0.00013698,2]
[356636399,1742871039305,-514.03184853,0.00013698,2]
[356636400,1742871039315,-500.0,0.00013698,2]
[356636401,1742871039323,-500.0,0.00013698,2]
[356636402,1742871039332,-509.39,0.00013698,2]
[356636403,1742871039342,-500.0,0.00013698,2]
[356636404,1742871039351,-500.0,0.00013698,2]
[356636405,1742871039361,-500.0,0.00013698,2]
[356636406,1742871039370,-522.00256388,0.00013698,2]
[356636407,1742871039379,-500.0,0.00013698,2]
[356636408,1742871039389,-500.0,0.00013698,2]
[356636409,1742871039398,-500.0,0.00013698,2]
[356636410,1742871039407,-925.97,0.00013698,2]
[356636411,1742871039416,-500.0,0.00013698,2]
[356636412,1742871039425,-500.0,0.00013698,2]
[356636413,1742871039435,-500.0,0.00013698,2]
[356636414,1742871039443,-500.0,0.00013698,2]
[356636415,1742871039453,-500.0,0.00013698,2]
[356636416,1742871039462,-500.0,0.00013698,2]
[356636417,1742871039471,-551.84757513,0.00013698,2]
[356636418,1742871039481,-565.8,0.00013698,2]
[356636419,1742871039491,-500.0,0.00013698,2]
[356636420,1742871039501,-500.0,0.00013698,2]
[356636421,1742871039511,-500.0,0.00013698,2]
[356636422,1742871039520,-500.0,0.00013698,2]
[356636423,1742871039529,-500.0,0.00013698,2]
[356636424,1742871039539,-500.0,0.00013698,2]
[356636425,1742871039548,-500.0,0.00013698,2]
[356636426,1742871039557,-500.0,0.00013698,2]
[356636427,1742871039567,-500.0,0.00013698,2]
[356636428,1742871039576,-500.0,0.00013698,2]
[356636429,1742871039587,-500.0,0.00013698,2]
[356636430,1742871039596,-603.62,0.00013698,2]
[356636431,1742871039606,-822.76,0.00013698,2]
[356636432,1742871039615,-510.86816586,0.00013698,2]
[356636433,1742871039625,-520.59844983,0.00013698,2]
[356636434,1742871039634,-500.0,0.00013698,2]
[356636435,1742871039643,-519.33417692,0.00013698,2]
[356636436,1742871039653,-500.0,0.00013698,2]
[356636437,1742871039663,-522.33449892,0.00013698,2]
[356636438,1742871039672,-500.0,0.00013698,2]
[356636439,1742871039682,-500.0,0.00013698,2]
[356636440,1742871039691,-500.0,0.00013698,2]
[356636441,1742871039701,-500.0,0.00013698,2]
[356636442,1742871039710,-579.88133062,0.00013698,2]
[356636443,1742871039720,-527.79005231,0.00013698,2]
[356636444,1742871039729,-2831.73,0.00013698,2]
[356636445,1742871039739,-500.0,0.00013698,2]
[356636446,1742871039749,-500.0,0.00013698,2]
[356636447,1742871039759,-500.0,0.00013698,2]
[356636448,1742871039768,-500.0,0.00013698,2]
[356636449,1742871039778,-500.0,0.00013698,2]
[356636450,1742871039787,-500.0,0.00013698,2]
[356636451,1742871039796,-1118.78,0.00013698,2]
[356636452,1742871039806,-508.80761494,0.00013698,2]
[356636453,1742871039815,-500.0,0.00013698,2]
[356636454,1742871039824,-518.02254559,0.00013698,2]
[356636455,1742871039833,-500.0,0.00013698,2]
[356636456,1742871039843,-512.03140951,0.00013698,2]
[356636457,1742871039852,-500.0,0.00013698,2]
[356636458,1742871039862,-500.0,0.00013698,2]
[356636459,1742871039871,-500.0,0.00013698,2]
[356636460,1742871039880,-507.77414001,0.00013698,2]
[356636461,1742871039890,-545.79,0.00013698,2]
[356636462,1742871039899,-446.45245784,0.00013698,2]
[356636463,1742871039908,-517.26508047,0.00013698,2]
[356636464,1742871039918,-508.55843403,0.00013698,2]
[356636466,1742871039927,-516.88855448,0.00013698,2]
[356636468,1742871039936,-500.0,0.00013698,2]
[356636470,1742871039946,-629.68,0.00013698,2]
[356636471,1742871039955,-500.0,0.00013698,2]
[356636472,1742871039965,-500.0,0.00013698,2]
[356636473,1742871039975,-500.0,0.00013698,2]
[356636474,1742871039985,-509.36553908,0.00013698,2]
[356636475,1742871039994,-500.0,0.00013698,2]
[356636476,1742871040003,-500.0,0.00013698,2]
[356636477,1742871040012,-556.91,0.00013698,2]
[356636478,1742871040022,-500.0,0.00013698,2]
[356636479,1742871040031,-500.0,0.00013698,2]
[356636480,1742871040040,-500.0,0.00013698,2]
[356636481,1742871040049,-500.0,0.00013698,2]
[356636482,1742871040058,-590.22,0.00013698,2]
[356636483,1742871040068,-558.73,0.00013698,2]
[356636484,1742871040077,-500.0,0.00013698,2]
[356636485,1742871040086,-525.93885707,0.00013698,2]
[356636486,1742871040095,-500.0,0.00013698,2]
[356636487,1742871040107,-500.0,0.00013698,2]
[356636488,1742871040116,-500.0,0.00013698,2]
[356636489,1742871040125,-500.0,0.00013698,2]
[356636490,1742871040135,-500.0,0.00013698,2]
[356636491,1742871040143,-500.0,0.00013698,2]
[356636492,1742871040153,-500.0,0.00013698,2]
[356636493,1742871040162,-500.0,0.00013698,2]
[356636494,1742871040172,-500.0,0.00013698,2]
[356636495,1742871040181,-601.79,0.00013698,2]
[356636496,1742871040194,-500.0,0.00013698,2]
[356636497,1742871040204,-515.88475643,0.00013698,2]
[356636498,1742871040213,-506.01036465,0.00013698,2]
[356636499,1742871040223,-500.0,0.00013698,2]
[356636500,1742871040233,-500.0,0.00013698,2]
[356636501,1742871040242,-516.77318041,0.00013698,2]
[356636502,1742871040252,-500.0,0.00013698,2]
[356636503,1742871040261,-500.0,0.00013698,2]
[356636504,1742871040271,-500.0,0.00013698,2]
[356636505,1742871040281,-513.88896764,0.00013698,2]
[356636506,1742871040290,-789.3,0.00013698,2]
[356636507,1742871040299,-500.0,0.00013698,2]
[356636508,1742871040308,-500.0,0.00013698,2]
[356636509,1742871040318,-518.19693062,0.00013698,2]
[356636510,1742871040327,-500.0,0.00013698,2]
[356636511,1742871040336,-500.0,0.00013698,2]
[356636512,1742871040346,-514.42262703,0.00013698,2]
[356636513,1742871040355,-163.4011613,0.00013698,2]
[356636514,1742871040364,-500.0,0.00013698,2]
[356636515,1742871040373,-500.0,0.00013698,2]
[356636516,1742871040383,-808.19,0.00013698,2]
[356636517,1742871040393,-538.21,0.00013698,2]
[356636518,1742871040402,-504.3303827,0.00013698,2]
[356636519,1742871040411,-502.72800287,0.00013698,2]
[356636520,1742871040421,-500.0,0.00013698,2]
[356636521,1742871040430,-536.77708652,0.00013698,2]
[356636522,1742871040440,-520.48687252,0.00013698,2]
[356636523,1742871040450,-500.0,0.00013698,2]
[356636524,1742871040459,-507.03630531,0.00013698,2]
[356636525,1742871040469,-514.57856745,0.00013698,2]
[356636526,1742871040478,-585.15,0.00013698,2]
[356636527,1742871040487,-531.26,0.00013698,2]
[356636528,1742871040497,-500.0,0.00013698,2]
[356636529,1742871040506,-503.92942913,0.00013698,2]
[356636530,1742871040516,-2018.82,0.00013698,2]
[356636531,1742871040525,-500.0,0.00013698,2]
[356636532,1742871040534,-537.52350898,0.00013698,2]
[356636533,1742871040544,-500.0,0.00013698,2]
[356636534,1742871040553,-505.11,0.00013698,2]
[356636535,1742871040563,-519.16573492,0.00013698,2]
[356636536,1742871040573,-500.0,0.00013698,2]
[356636537,1742871040582,-2272.63,0.00013698,2]
[356636538,1742871040592,-500.0,0.00013698,2]
[356636539,1742871040601,-637.42682505,0.00013698,2]
[356636540,1742871040611,-1298.28,0.00013698,2]
[356636541,1742871040620,-516.22825215,0.00013698,2]
[356636542,1742871040629,-500.0,0.00013698,2]
[356636543,1742871040639,-500.0,0.00013698,2]
[356636544,1742871040648,-500.0,0.00013698,2]
[356636545,1742871040658,-537.93632193,0.00013698,2]
[356636546,1742871040667,-500.0,0.00013698,2]
[356636547,1742871040677,-504.61656828,0.00013698,2]
[356636548,1742871040686,-2027.29,0.00013698,2]
[356636549,1742871040695,-513.65374314,0.00013698,2]
[356636550,1742871040704,-503.23745238,0.00013698,2]
[356636551,1742871040714,-500.0,0.00013698,2]
[356636552,1742871040723,-527.25979126,0.00013698,2]
[356636553,1742871040732,-543.2037955,0.00013698,2]
[356636554,1742871040741,-500.0,0.00013698,2]
[356636555,1742871040751,-500.0,0.00013698,2]
[356636556,1742871040760,-500.0,0.00013698,2]
[356636557,1742871040770,-512.85930508,0.00013698,2]
[356636558,1742871040780,-500.0,0.00013698,2]
[356636559,1742871040789,-2691.51,0.00013698,2]
[356636560,1742871040798,-500.0,0.00013698,2]
[356636561,1742871040807,-290.120171,0.00013698,2]
[356636562,1742871040817,-705.7,0.00013698,2]
[356636563,1742871040826,-500.0,0.00013698,2]
[356636564,1742871040835,-3318.04,0.00013698,2]
[356636565,1742871040844,-500.0,0.00013698,2]
[356636566,1742871040854,-290.120171,0.00013698,2]
[356636567,1742871040863,-500.0,0.00013698,2]
[356636568,1742871040873,-511.54664216,0.00013698,2]
[356636569,1742871040882,-500.0,0.00013698,2]
[356636570,1742871040891,-4359.72,0.00013698,2]
[356636571,1742871040901,-500.0,0.00013698,2]
[356636572,1742871040911,-516.16813499,0.00013698,2]
[356636573,1742871040920,-500.0,0.00013698,2]
[356636574,1742871040930,-1102.08,0.00013698,2]
[356636575,1742871040939,-756.17,0.00013698,2]
[356636576,1742871040949,-1407.22,0.00013698,2]
[356636577,1742871040959,-525.93171024,0.00013698,2]
[356636578,1742871040968,-500.0,0.00013698,2]
[356636579,1742871040978,-500.0,0.00013698,2]
[356636580,1742871040987,-500.0,0.00013698,2]
[356636581,1742871040997,-1495.88,0.00013698,2]
[356636582,1742871041006,-500.0,0.00013698,2]
[356636583,1742871041015,-500.0,0.00013698,2]
[356636584,1742871041025,-508.9063266,0.00013698,2]
[356636585,1742871041034,-500.0,0.00013698,2]
[356636586,1742871041044,-500.0,0.00013698,2]
[356636587,1742871041053,-500.0,0.00013698,2]
[356636588,1742871041062,-859.44,0.00013698,2]
[356636589,1742871041072,-500.0,0.00013698,2]
[356636590,1742871041081,-500.0,0.00013698,2]
[356636591,1742871041091,-500.0,0.00013698,2]
[356636592,1742871041100,-622.34,0.00013698,2]
[356636593,1742871041109,-90070.02,0.00013698,2]
[356636594,1742871041119,-500.0,0.00013698,2]
[356636595,1742871041128,-500.0,0.00013698,2]
[356636596,1742871041137,-2316.77,0.00013698,2]
[356636597,1742871041147,-500.0,0.00013698,2]
[356636598,1742871041156,-6723.47,0.00013698,2]
[356636599,1742871041165,-500.0,0.00013698,2]
[356636600,1742871041175,-500.0,0.00013698,2]
[356636601,1742871041185,-500.0,0.00013698,2]
[356636602,1742871041200,-606.76,0.00013698,2]
[356636603,1742871041209,-1078.92,0.00013698,2]
[356636604,1742871041219,-1523.23,0.00013698,2]
[356636605,1742871041230,-10279.42,0.00013698,2]
[356636606,1742871041241,-500.0,0.00013698,2]
[356636607,1742871041252,-500.0,0.00013698,2]
[356636608,1742871041261,-500.0,0.00013698,2]
[356636609,1742871041272,-1304.22,0.00013698,2]
[356636610,1742871041283,-500.0,0.00013698,2]
[356636611,1742871041292,-500.0,0.00013698,2]
[356636612,1742871041302,-500.0,0.00013698,2]
[356636613,1742871041312,-3874.69,0.00013698,2]
[356636614,1742871041321,-10832.22,0.00013698,2]
[356636615,1742871041331,-500.0,0.00013698,2]
[356636616,1742871041340,-500.0,0.00013698,2]
[356636617,1742871041349,-3089.46,0.00013698,2]
[356636618,1742871041359,-500.0,0.00013698,2]
[356636619,1742871041367,-500.0,0.00013698,2]
[356636620,1742871041377,-500.0,0.00013698,2]
[356636621,1742871041387,-500.0,0.00013698,2]
[356636622,1742871041396,-1096.73,0.00013698,2]
[356636623,1742871041406,-1398.46,0.00013698,2]
[356636624,1742871041414,-500.0,0.00013698,2]
[356636625,1742871041424,-3154.42,0.00013698,2]
[356636626,1742871041433,-509.74685968,0.00013698,2]
[356636627,1742871041442,-5907.49,0.00013698,2]
[356636628,1742871041562,-500.0,0.00013698,2]
[356636629,1742871041572,-500.0,0.00013698,2]
[356636630,1742871041582,-500.0,0.00013698,2]
[356636631,1742871041592,-3007.3,0.00013698,2]
[356636632,1742871041602,-1296.62,0.00013698,2]
[356636633,1742871041612,-500.0,0.00013698,2]
[356636634,1742871041622,-595.45,0.00013698,2]
[356636635,1742871041632,-500.0,0.00013698,2]
[356636636,1742871041642,-312.62927494,0.00013698,2]
[356636637,1742871041651,-500.0,0.00013698,2]
[356636638,1742871041661,-500.0,0.00013698,2]
[356636639,1742871041670,-1871.5,0.00013698,2]
[356636640,1742871041680,-500.0,0.00013698,2]
[356636641,1742871041689,-500.0,0.00013698,2]
[356636642,1742871041698,-506.90850976,0.00013698,2]
[356636643,1742871041707,-1078.62,0.00013698,2]
[356636644,1742871041717,-304.525811,0.00013698,2]
[356636645,1742871041726,-500.0,0.00013698,2]
[356636646,1742871041736,-304.525811,0.00013698,2]
[356636647,1742871041746,-508.43221016,0.00013698,2]
[356636648,1742871041756,-580.35303187,0.00013698,2]
[356636649,1742871041765,-1837.62,0.00013698,2]
[356636650,1742871041774,-500.0,0.00013698,2]
[356636651,1742871041784,-923.04,0.00013698,2]
[356636652,1742871041794,-500.0,0.00013698,2]
[356636653,1742871041804,-2083.47,0.00013698,2]
[356636654,1742871041813,-500.0,0.00013698,2]
[356636655,1742871041823,-500.0,0.00013698,2]
[356636656,1742871041833,-500.0,0.00013698,2]
[356636657,1742871041843,-3553.95,0.00013698,2]
[356636658,1742871041853,-500.0,0.00013698,2]
[356636659,1742871041867,-500.0,0.00013698,2]
[356636660,1742871041877,-500.0,0.00013698,2]
[356636661,1742871041887,-500.0,0.00013698,2]
[356636662,1742871041896,-5624.23,0.00013698,2]
[356636663,1742871041905,-500.0,0.00013698,2]
[356636664,1742871041915,-500.0,0.00013698,2]
[356636665,1742871041924,-500.0,0.00013698,2]
[356636666,1742871041934,-2771.08,0.00013698,2]
[356636667,1742871041943,-500.0,0.00013698,2]
[356636668,1742871041952,-509.71,0.00013698,2]
[356636669,1742871041962,-500.0,0.00013698,2]
[356636670,1742871041972,-905.97,0.00013698,2]
[356636671,1742871041981,-500.0,0.00013698,2]
[356636672,1742871041991,-500.0,0.00013698,2]
[356636673,1742871042000,-500.0,0.00013698,2]
[356636674,1742871042010,-1023.95,0.00013698,2]
[356636675,1742871042019,-1883.79,0.00013698,2]
[356636676,1742871042029,-500.0,0.00013698,2]
[356636677,1742871042038,-1050.02,0.00013698,2]
[356636678,1742871042047,-500.0,0.00013698,2]
[356636679,1742871042057,-387.94316012,0.00013698,2]
[356636680,1742871042066,-3180.99,0.00013698,2]
[356636681,1742871042075,-500.0,0.00013698,2]
[356636682,1742871042085,-500.0,0.00013698,2]
[356636683,1742871042094,-1066.74,0.00013698,2]
[356636684,1742871042103,-500.0,0.00013698,2]
[356636685,1742871042113,-500.0,0.00013698,2]
[356636686,1742871042122,-500.0,0.00013698,2]
[356636687,1742871042131,-969.85,0.00013698,2]
[356636688,1742871042140,-500.0,0.00013698,2]
[356636689,1742871042151,-500.0,0.00013698,2]
[356636690,1742871042170,-1761.0,0.00013698,2]
[356636691,1742871042182,-879.79,0.00013698,2]
[356636692,1742871042194,-534.03,0.00013698,2]
[356636693,1742871042204,-500.0,0.00013698,2]
[356636694,1742871042214,-14909.9331168,0.00013699,2]
[356636695,1742871042224,-61802.7402705,0.00013699,2]
[356636696,1742871042234,-1125.389027,0.00013699,2]
[356636697,1742871042244,-2503.52421574,0.00013699,2]
[356636698,1742871042254,-2503.52421574,0.00013699,2]
[356636699,1742871042263,-2503.52421574,0.00013699,2]
[356636700,1742871042273,-2503.52421574,0.00013699,2]